bitfinex-derivatives/quotes_ETHF0:USTF0_20260131
["timestamp","ask_amount","ask_price","bid_price","bid_amount"]
[1769885339775,0.0036049,2365.3,2363.7,3.95367194]
[1769885340174,0.0036049,2365.3,2363.5,3.39104124]
[1769885340375,0.0036049,2365.3,2364.5,21.41151215]
[1769885340580,0.0036049,2365.3,2363.6,4.11566085]
[1769885340782,0.0036049,2365.3,2363.7,71.09966589]
[1769885340984,3.0395385,2365.0,2363.5,2.93210124]
[1769885341183,0.21178,2364.3,2363.5,1.59704124]
[1769885341380,0.21174,2364.8,2363.5,0.00304124]
[1769885341579,0.2118,2364.1,2362.3,2.40865124]
[1769885341784,0.21175,2364.7,2361.0,4.11566085]
[1769885341980,3.0395385,2361.9,2359.4,70.62392589]
[1769885342190,3.0395385,2361.0,2358.7,3.387]
[1769885342381,3.0395385,2361.0,2358.8,70.19164589]
[1769885342578,0.21213,2360.4,2358.9,4.11566085]
[1769885342779,0.00478935,2361.0,2358.9,4.11566085]
[1769885342981,0.21194,2362.6,2360.0,4.11566085]
[1769885343181,0.21184,2363.7,2361.0,4.11566085]
[1769885343378,0.21185,2363.6,2361.0,4.11566085]
[1769885343580,0.21185,2363.6,2361.2,4.11566085]
[1769885343789,0.21171,2365.1,2362.4,4.11566085]
[1769885343985,3.38512664,2364.7,2362.4,0.00437172]
[1769885344285,0.21182,2363.9,2362.5,70.19164589]
[1769885344487,0.21175,2364.7,2362.5,70.19164589]
[1769885344686,0.21175,2364.7,2363.1,21.41151215]
[1769885344985,0.21157,2366.7,2364.6,21.41151215]
[1769885345181,3.38512664,2366.7,2362.6,70.19164589]
[1769885345385,0.21164,2365.9,2362.7,3.387]
[1769885345586,0.21169,2365.4,2362.7,3.387]
[1769885345787,0.21169,2365.4,2362.8,70.19164589]
[1769885345989,0.21495796,2365.4,2363.7,25.27155129]
[1769885346191,0.21172,2365.0,2362.8,70.19502899]
[1769885346389,0.00326796,2365.4,2363.0,3.38512664]
[1769885346687,1.15276406,2366.8,2362.9,70.19164589]
[1769885346888,0.21163,2366.1,2362.9,70.19164589]
[1769885347092,3.38512664,2367.0,2362.9,70.19164589]
[1769885347093,0.2117,2365.2,2363.9,20.95522349]
[1769885347386,0.21164,2365.9,2362.9,70.19164589]
[1769885347587,0.00497472,2365.2,2363.0,23.709]
[1769885347782,0.21176,2364.5,2362.9,70.19164589]
[1769885347981,0.21176,2364.5,2363.1,20.95522349]
[1769885348185,0.00497472,2365.2,2363.4,3.96952515]
[1769885348488,0.00497472,2365.2,2363.4,3.52624515]
[1769885348688,0.21176,2364.6,2363.5,69.76441589]
[1769885348888,3.59685664,2364.9,2362.8,0.0033831]
[1769885349090,0.21191,2362.9,2362.8,0.0033831]
[1769885349283,0.21191,2362.9,2361.3,3.386]
[1769885349284,0.21197,2362.3,2361.4,69.32279589]
[1769885349487,0.21197,2362.3,2361.5,20.95522349]
[1769885349786,0.21197,2362.3,2361.9,19.58677349]
[1769885349992,0.21644554,2362.9,2361.3,2.9528931]
[1769885350194,0.21198,2362.1,2361.3,1.8364931]
[1769885350391,0.21202,2361.7,2361.3,0.00371026]
[1769885350586,0.00453554,2362.9,2361.3,0.00371026]
[1769885350795,0.00453554,2362.9,2360.3,4.11590661]
[1769885350994,0.212,2362.0,2360.8,3.63445661]
[1769885351293,0.69346,2361.8,2360.0,66.85725615]
[1769885351594,0.21212,2360.5,2358.7,66.85725615]
[1769885351789,3.38512664,2359.9,2357.6,2.95402727]
[1769885352087,0.21226,2359.0,2356.6,3.386]
[1769885352289,0.21229,2358.7,2357.0,18.29457432]
[1769885352486,0.2123,2358.5,2356.6,3.387]
[1769885352690,0.21228,2358.8,2356.7,3.387]
[1769885352989,0.21740201,2358.8,2356.8,3.387]
[1769885353289,0.21740201,2358.8,2356.9,4.11590661]
[1769885353491,0.21235,2358.0,2356.7,0.00338934]
[1769885353690,0.21237,2357.8,2356.7,65.34212549]
[1769885353885,3.60252865,2358.8,2356.7,65.34212549]
[1769885354086,0.00512201,2358.8,2357.5,4.11590661]
[1769885354389,0.21211,2360.6,2357.6,3.388]
[1769885354594,0.21206,2361.3,2357.6,3.388]
[1769885354787,0.212,2361.9,2357.7,65.33873615]
[1769885354994,0.21206,2361.2,2357.8,27.108]
[1769885355292,0.00306922,2361.2,2358.4,17.46674884]
[1769885355590,0.21184,2363.6,2358.7,3.38512664]
[1769885355591,0.21195,2362.5,2358.7,3.38512664]
[1769885355791,0.21195,2362.5,2359.7,17.46674884]
[1769885355995,0.21201,2361.8,2359.8,3.389]
[1769885356196,1.38509443,2363.0,2359.9,4.11590661]
[1769885356495,0.00515676,2363.0,2361.4,21.58265545]
[1769885356691,0.00515676,2363.0,2361.6,21.58265545]
[1769885356900,0.00515676,2363.0,2361.6,4.11590661]
[1769885357189,0.21194,2362.5,2361.3,17.46674884]
[1769885357389,0.21194,2362.5,2361.1,3.389]
[1769885357589,0.21199,2362.0,2361.1,1.80190094]
[1769885357791,0.00515676,2363.0,2361.1,0.53869094]
[1769885358001,0.212,2361.9,2361.1,65.87742709]
[1769885358198,0.21195,2362.5,2361.1,65.44686423]
[1769885358390,0.00515676,2363.0,2361.1,65.44686423]
[1769885358697,0.00515676,2363.0,2362.3,16.14009884]
[1769885358992,0.00515676,2363.0,2362.0,4.11590661]
[1769885359392,0.21192,2362.8,2362.2,14.46146884]
[1769885359597,0.21193,2362.7,2361.3,4.11075735]
[1769885359801,0.21197,2362.2,2361.2,64.81841615]
[1769885359997,0.212,2361.9,2360.0,23.724]
[1769885360298,0.21206,2361.3,2360.1,63.38782615]
[1769885360497,0.2121,2360.8,2359.1,3.389]
[1769885360692,0.21215,2360.2,2359.2,62.46019615]
[1769885360898,0.21219,2359.7,2354.2,3.39192481]
[1769885361200,0.00461227,2359.7,2355.7,89.57219615]
[1769885361399,0.21226,2359.0,2355.7,89.57219615]
[1769885361598,0.21228,2358.8,2355.7,62.46019615]
[1769885361801,0.21228,2358.8,2355.9,3.96952515]
[1769885362001,0.21221,2359.5,2355.9,3.96952515]
[1769885362293,0.00461227,2359.7,2356.1,3.96952515]
[1769885362500,0.00461227,2359.7,2356.3,3.96952515]
[1769885362901,0.00461227,2359.7,2356.5,3.96952515]
[1769885363098,0.2123,2358.5,2356.5,3.96952515]
[1769885363399,0.00461227,2359.7,2356.7,3.96952515]
[1769885363791,0.21205,2361.4,2357.2,3.96952515]
[1769885363992,0.21201,2361.8,2357.1,3.39]
[1769885364193,0.74276381,2361.1,2357.4,3.96952515]
[1769885364399,0.2122,2359.7,2357.6,3.96952515]
[1769885364600,0.21226,2359.1,2357.5,3.39]
[1769885364798,0.21233,2358.3,2356.3,3.39]
[1769885364994,0.0030369,2359.1,2356.5,4.11590661]
[1769885365196,0.2152869,2359.1,2356.5,4.11590661]
[1769885365395,0.2152869,2359.1,2356.4,68.07719615]
[1769885365396,0.0030369,2359.1,2357.3,4.11590661]
[1769885365602,0.21227,2358.9,2357.3,4.11590661]
[1769885365901,0.21208,2361.0,2358.4,4.11465124]
[1769885366203,0.21219,2359.8,2358.4,4.11465124]
[1769885366408,0.21209,2360.9,2358.6,4.11465124]
[1769885366708,0.21214,2360.3,2358.6,4.11465124]
[1769885367003,0.21219,2359.8,2357.6,5.62]
[1769885367202,0.21223,2359.4,2357.6,5.62]
[1769885367402,0.21223,2359.4,2357.7,61.93791615]
[1769885368207,0.21622445,2360.3,2357.7,61.93791615]
[1769885368508,0.00408445,2360.3,2357.7,61.93791615]
[1769885369002,0.21197,2362.3,2359.9,3.96952515]
[1769885369198,0.212,2361.9,2360.1,3.96952515]
[1769885369403,0.2119,2363.0,2360.3,3.96952515]
[1769885369602,0.2119,2363.0,2360.5,3.96952515]
[1769885369802,0.21184,2363.7,2361.3,3.96952515]
[1769885370003,0.21198,2362.2,2360.4,61.93791615]
[1769885370205,0.21189,2363.1,2360.4,61.93791615]
[1769885370399,3.60268,2365.4,2360.6,4.11590661]
[1769885370605,3.60268,2365.4,2360.5,5.643]
[1769885370606,3.39192481,2364.9,2360.8,4.11590661]
[1769885370803,3.39192481,2364.2,2360.7,3.391]
[1769885371006,0.21198,2362.1,2360.7,64.89706615]
[1769885371201,3.391,2363.6,2359.5,4.11590661]
[1769885371407,0.21209,2360.9,2359.5,0.00381468]
[1769885371710,0.21203,2361.5,2359.9,8.3538363]
[1769885371911,0.21185,2363.5,2359.9,4.1154363]
[1769885372114,3.60285,2363.6,2360.1,4.1154363]
[1769885372311,0.00094061,2365.6,2360.6,4.1154363]
[1769885372515,0.21168,2365.4,2361.5,4.1154363]
[1769885372811,0.21631406,2365.4,2361.7,4.1154363]
[1769885373013,0.21182,2363.9,2361.7,4.1154363]
[1769885373216,0.21177,2364.4,2361.9,4.1154363]
[1769885373417,0.21185,2363.6,2362.1,4.1154363]
[1769885373605,0.21155,2366.9,2362.1,4.1154363]
[1769885373606,0.21175,2364.7,2362.1,4.1154363]
[1769885373912,0.21156,2366.8,2363.8,4.11204721]
[1769885374111,0.21156,2366.8,2364.0,4.11204721]
[1769885374307,0.21147,2367.8,2364.8,4.11204721]
[1769885374618,0.21149,2367.6,2365.0,4.11204721]
[1769885374814,0.21149,2367.6,2364.9,3.39]
[1769885374815,0.21149,2367.6,2365.2,4.11204721]
[1769885375005,0.21149,2367.6,2365.6,4.11204721]
[1769885375416,0.21151,2367.3,2365.7,61.93791615]
[1769885375614,0.2115,2367.4,2365.7,61.50249615]
[1769885375816,0.00489081,2367.8,2364.8,0.0030142]
[1769885375817,0.21156,2366.8,2364.9,4.0896245]
[1769885376019,0.21152,2367.2,2364.9,65.59212065]
[1769885376213,0.21158,2366.6,2365.0,4.0896245]
[1769885376610,0.00489081,2367.8,2365.4,8.3280245]
[1769885376811,0.00489081,2367.8,2365.5,4.0896245]
[1769885377216,0.00489081,2367.8,2365.7,4.0896364]
[1769885377712,0.10945007,2366.9,2364.8,0.0030142]
[1769885377916,0.21164,2365.9,2364.9,61.07222615]
[1769885378116,0.21164,2365.9,2364.8,0.0030142]
[1769885378117,0.21167,2365.6,2364.8,0.0030142]
[1769885378710,0.32101007,2366.8,2364.8,0.0030142]
[1769885378711,12.13352865,2367.4,2365.0,4.06470928]
[1769885378914,0.2115,2367.4,2365.4,4.06470928]
[1769885379214,0.21155,2366.9,2365.1,14.17889904]
[1769885379411,0.21147,2367.8,2364.9,14.17889904]
[1769885379611,0.21147,2367.8,2365.0,4.2384]
[1769885379811,0.21650885,2367.8,2364.9,14.17889904]
[1769885380012,0.00503885,2367.8,2364.9,14.17889904]
[1769885380608,0.00503885,2367.8,2365.0,4.2384]
[1769885380813,0.21152,2367.2,2365.1,8.893]
[1769885381014,0.50996834,2367.4,2365.1,8.893]
[1769885381216,0.21148,2367.7,2365.3,3.87343108]
[1769885381415,0.00503885,2367.8,2365.6,3.87343108]
[1769885381616,0.21153,2367.2,2365.6,3.87343108]
[1769885381817,0.21151,2367.3,2365.1,8.893]
[1769885382121,0.2116,2366.4,2365.3,13.74346904]
[1769885382314,0.50507782,2367.4,2365.3,12.83385904]
[1769885382515,0.21152,2367.2,2365.4,3.87343108]
[1769885382814,0.00503885,2367.8,2365.8,4.2384]
[1769885383014,0.00503885,2367.8,2366.0,3.87343108]
[1769885383215,0.2115,2367.4,2366.0,3.87343108]
[1769885383415,0.00503885,2367.8,2365.4,3.87745383]
[1769885383716,0.21161,2366.2,2365.2,11.86919904]
[1769885383913,0.21166,2365.7,2361.2,0.21206]
[1769885384115,0.92906098,2365.6,2361.3,27.084]
[1769885384420,0.21176,2364.5,2361.4,5.672]
[1769885384620,0.21176,2364.5,2362.3,4.2384]
[1769885384817,0.92906098,2366.3,2363.2,4.2384]
[1769885385017,0.21167,2365.6,2363.3,3.385]
[1769885385212,0.21167,2365.6,2363.4,4.2384]
[1769885385418,0.21167,2365.6,2363.8,4.2384]
[1769885385615,0.21167,2365.6,2363.9,3.87343108]
[1769885385921,0.2117,2365.2,2363.9,3.87343108]
[1769885386123,0.21176,2364.6,2363.3,3.385]
[1769885386319,0.0040136,2366.3,2363.3,3.385]
[1769885386320,0.21165,2365.8,2363.4,4.2384]
[1769885386520,0.21165,2365.8,2363.3,2.94357]
[1769885386521,0.21167,2365.6,2363.3,2.94357]
[1769885386915,0.21167,2365.6,2363.5,4.2384]
[1769885387122,0.21167,2365.5,2363.5,4.2384]
[1769885387322,0.00395864,2365.5,2363.8,4.2384]
[1769885387516,0.00395864,2365.5,2363.3,2.94357]
[1769885387721,0.21168,2365.4,2363.6,4.2384]
[1769885388026,0.21168,2365.4,2363.8,3.87343108]
[1769885388421,0.00395864,2365.5,2364.6,3.87343108]
[1769885388616,0.21152,2367.3,2365.3,3.87343108]
[1769885389022,0.21152,2367.3,2365.1,5.665]
[1769885389023,0.21152,2367.3,2365.7,3.87343108]
[1769885389222,0.21152,2367.3,2366.0,3.87343108]
[1769885389426,5.8617018,2368.8,2365.8,4.2384]
[1769885389427,0.21145,2368.1,2366.2,3.87343108]
[1769885389721,1.64923072,2368.1,2366.2,0.00421875]
[1769885389924,0.21158,2366.5,2364.5,3.385]
[1769885390117,1.64555489,2366.8,2363.2,3.384]
[1769885390322,0.21167,2365.6,2363.3,3.384]
[1769885390518,0.21168,2365.5,2363.3,3.384]
[1769885390722,0.2116,2366.3,2363.3,3.384]
[1769885390923,0.21698916,2366.3,2363.3,3.38714344]
[1769885391118,1.64555489,2368.4,2363.3,3.59900344]
[1769885391323,0.21153,2367.2,2363.5,4.2384]
[1769885391517,0.21153,2367.2,2364.1,4.2384]
[1769885391723,0.21153,2367.2,2364.4,3.87343108]
[1769885391924,1.77509661,2367.5,2364.8,3.87343108]
[1769885392119,1.77509661,2367.5,2364.9,3.87343108]
[1769885392120,0.21151,2367.4,2364.9,3.87343108]
[1769885392420,0.21155,2366.9,2364.9,3.87343108]
[1769885392620,0.21155,2366.9,2365.2,3.87343108]
[1769885392824,0.21155,2366.9,2365.2,8.11682496]
[1769885393026,0.21157,2366.7,2365.5,3.87343108]
[1769885393226,0.21162,2366.2,2363.2,23.691]
[1769885393421,0.21153,2367.2,2364.4,3.384]
[1769885393621,0.00352102,2367.5,2364.4,3.384]
[1769885393926,0.21158,2366.6,2364.4,3.384]
[1769885394122,0.21158,2366.6,2364.4,7.6224]
[1769885394425,0.00352102,2367.5,2365.5,4.2384]
[1769885394622,2.29491775,2370.9,2365.6,0.21166]
[1769885394821,0.21125,2370.2,2364.9,4.2384]
[1769885395019,0.21136,2369.1,2365.2,3.384]
[1769885395223,0.21136,2369.1,2365.3,3.87343108]
[1769885395424,0.21136,2369.1,2365.2,3.384]
[1769885395425,0.21136,2369.1,2366.6,3.87343108]
[1769885395625,0.00312996,2369.1,2367.1,3.87343108]
[1769885395925,0.21137,2369.0,2367.2,7.25743108]
[1769885396129,0.00312996,2369.1,2368.1,3.87343108]
[1769885396428,0.00312996,2369.1,2368.4,3.87343108]
[1769885396623,0.21126,2370.2,2369.0,4.2384]
[1769885396829,0.21117,2371.2,2369.2,4.05264215]
[1769885397020,2.28791249,2371.8,2369.2,4.05264215]
[1769885397220,0.21121,2370.7,2369.2,4.05264215]
[1769885397420,2.40193946,2371.4,2368.5,4.05264215]
[1769885397625,2.40193946,2370.4,2368.4,9.18e-06]
[1769885397931,2.40193946,2369.5,2367.0,4.05264215]
[1769885398225,2.40193946,2368.6,2365.7,4.05264215]
[1769885398420,2.40193946,2368.6,2365.9,4.05264215]
[1769885398624,2.61327946,2369.2,2366.1,4.05264215]
[1769885398821,0.21142,2368.4,2366.1,4.05651163]
[1769885399026,2.61329946,2369.0,2366.1,4.05651163]
[1769885399224,2.61329946,2369.0,2366.4,4.05264215]
[1769885399421,0.00480244,2369.2,2366.4,4.05264215]
[1769885399629,0.21138,2368.8,2367.0,4.05264215]
[1769885400030,0.21138,2368.8,2367.2,8.29104215]
[1769885400226,2.89924912,2369.0,2366.1,0.00386948]
[1769885400530,2.89924912,2368.5,2366.1,0.00386948]
[1769885401032,0.21142,2368.4,2366.1,0.00386948]
[1769885401232,0.00480244,2369.2,2366.1,0.00386948]
[1769885401434,11.92202865,2370.4,2366.1,0.00386948]
[1769885401435,0.21126,2370.2,2367.5,4.2384]
[1769885401631,0.21117,2371.2,2368.1,4.2384]
[1769885401826,0.21114,2371.6,2368.0,4.2384]
[1769885402030,0.21113,2371.6,2368.3,4.2384]
[1769885402225,16.22636171,2372.8,2368.5,4.05264215]
[1769885402226,2.92540196,2372.0,2368.5,4.05264215]
[1769885402435,0.00311301,2372.0,2368.7,4.05264215]
[1769885402631,0.00311301,2372.0,2369.3,4.05264215]
[1769885402831,3.13961497,2372.0,2369.6,4.05264215]
[1769885403027,2.92851497,2372.0,2369.6,4.05264215]
[1769885403227,0.00311301,2372.0,2369.9,4.2384]
[1769885403427,0.21118,2371.0,2369.2,3.381]
[1769885403735,3.38296955,2371.5,2369.2,3.381]
[1769885404334,0.00311301,2372.0,2369.2,3.381]
[1769885404635,3.38608256,2372.0,2369.3,3.381]
[1769885404932,3.59427955,2369.6,2366.8,3.381]
[1769885405233,3.59427955,2369.6,2363.9,0.21182]
[1769885405234,3.38296955,2368.7,2365.2,3.38]
[1769885405537,3.81933173,2369.5,2365.3,4.05264215]
[1769885405725,3.81933173,2369.5,2365.6,4.05264215]
[1769885405929,3.81933173,2369.5,2366.3,4.05264215]
[1769885405930,0.2114,2368.6,2366.3,4.05264215]
[1769885406135,0.21143,2368.2,2366.5,8.29104215]
[1769885406334,0.21143,2368.2,2366.5,4.05264215]
[1769885406530,0.21155,2366.9,2365.6,0.00390105]
[1769885406735,0.21145,2368.1,2365.6,4.0565432]
[1769885406938,0.21146,2367.9,2365.6,4.0565432]
[1769885407131,0.21137,2368.9,2365.6,4.0565432]
[1769885407132,0.21151,2367.3,2365.6,4.0565432]
[1769885407337,0.21137,2368.9,2365.6,4.0565432]
[1769885407338,0.21141,2368.5,2365.6,4.0565432]
[1769885407533,3.75619891,2368.7,2365.6,4.0565432]
[1769885407739,0.21151,2367.3,2365.6,4.0565432]
[1769885407936,0.21154,2367.1,2365.6,4.0565432]
[1769885408237,3.75619891,2368.4,2365.6,4.0565432]
[1769885408533,0.21146,2367.9,2365.6,4.0565432]
[1769885408838,0.21557977,2368.7,2365.6,4.0565432]
[1769885409132,11.92202865,2370.1,2366.8,3.38]
[1769885409328,0.21122,2370.6,2367.0,4.04829311]
[1769885409533,0.21126,2370.2,2367.1,7.42929311]
[1769885409733,11.92202865,2371.2,2367.2,4.04829311]
[1769885409933,0.21121,2370.7,2367.2,4.04829311]
[1769885410131,0.21122,2370.6,2367.2,4.04829311]
[1769885410333,0.2113,2369.7,2367.2,4.04829311]
[1769885410536,0.21656259,2370.7,2367.2,4.04829311]
[1769885410737,0.00535259,2370.7,2367.2,4.04829311]
[1769885411131,0.00535259,2370.7,2367.2,4.25980311]
[1769885411332,0.00535259,2370.7,2366.4,9.856]
[1769885411333,3.61271097,2372.7,2368.6,4.04829311]
[1769885411538,0.21105,2372.5,2368.8,4.04829311]
[1769885411738,6.20492203,2373.0,2369.0,4.04829311]
[1769885412234,0.00510949,2373.0,2369.0,4.05175887]
[1769885412434,0.00510949,2373.0,2370.1,4.04829311]
[1769885412937,0.2109,2374.2,2370.1,4.04829311]
[1769885413332,3.65819358,2375.8,2370.3,4.04829311]
[1769885413530,0.21075,2376.0,2371.5,4.04829311]
[1769885413732,0.21075,2376.0,2371.7,4.04829311]
[1769885414033,4.0235526,2375.6,2371.7,4.04829311]
[1769885414337,4.0235526,2373.6,2371.5,0.00416612]
[1769885414537,4.02724305,2373.6,2371.5,0.00416612]
[1769885414736,4.0235526,2373.0,2371.5,0.00416612]
[1769885414930,4.0235526,2373.0,2365.3,930.28939]
[1769885414931,4.0235526,2372.6,2369.7,4.04829311]
[1769885415134,4.0235526,2370.6,2368.6,3.378]
[1769885415435,4.0235526,2370.9,2368.6,3.378]
[1769885415634,0.21118,2371.1,2367.9,27.69829311]
[1769885415635,4.0235526,2370.3,2367.9,4.04829311]
[1769885415836,4.0235526,2370.1,2367.9,4.05330685]
[1769885416030,0.21133,2369.4,2367.9,3.74e-06]
[1769885416333,4.0235526,2369.3,2366.6,4.04829311]
[1769885416738,4.0235526,2369.3,2366.8,4.04829311]
[1769885416939,4.0235526,2369.3,2367.0,4.04829311]
[1769885417135,4.0235526,2370.1,2367.0,4.05337436]
[1769885417537,3.84052036,2369.1,2367.0,4.05337436]
[1769885417738,0.21135,2369.2,2367.0,0.00508125]
[1769885417943,3.84052036,2369.4,2367.0,3.77845424]
[1769885418141,3.84052036,2370.1,2367.0,3.77845424]
[1769885418445,0.00447645,2370.3,2367.2,3.77337299]
[1769885419141,3.84052036,2368.8,2367.0,0.00508125]
[1769885419539,0.21134,2369.3,2367.0,0.00508125]
[1769885420044,3.84052036,2368.7,2367.0,1.25e-06]
[1769885420246,3.84052036,2368.7,2365.0,3.378]
[1769885420247,4.05198036,2367.9,2365.0,3.378]
[1769885420437,4.05206036,2367.1,2365.0,3.378]
[1769885420839,3.84052036,2367.1,2365.0,3.378]
[1769885421143,4.05216036,2365.9,2363.8,3.378]
[1769885421346,3.84052036,2366.4,2363.9,3.77337299]
[1769885421643,3.84052036,2366.1,2363.9,3.77337299]
[1769885421943,0.21165,2365.8,2363.9,3.77337299]
[1769885422144,4.05224036,2365.1,2362.6,7.15237299]
[1769885422340,0.215807,2365.1,2362.7,3.77337299]
[1769885422540,0.004087,2365.1,2362.7,3.77337299]
[1769885422746,0.21162,2366.2,2362.7,3.77337299]
[1769885423247,3.84052036,2367.7,2362.7,3.77337299]
[1769885423447,0.21153,2367.1,2362.7,3.77337299]
[1769885423643,3.84052036,2366.7,2362.7,3.77337299]
[1769885423843,0.21161,2366.3,2362.7,3.77337299]
[1769885424342,3.84445625,2366.7,2362.7,3.77337299]
[1769885424343,0.00393589,2366.7,2362.7,3.77337299]
[1769885424646,0.00393589,2366.7,2363.1,3.77337299]
[1769885425149,0.21163,2366.0,2363.1,3.77337299]
[1769885426446,3.84052036,2366.2,2363.1,3.77337299]
[1769885426641,3.84052036,2366.5,2363.1,3.77337299]
[1769885426844,0.00393589,2366.7,2363.1,3.77337299]
[1769885427044,3.84052036,2366.4,2363.1,3.77337299]
[1769885427648,0.21167,2365.6,2363.1,3.77337299]
[1769885428147,0.21550589,2366.7,2363.1,3.77337299]
[1769885428339,3.84052036,2366.2,2363.1,3.77337299]
[1769885428539,3.84052036,2366.0,2363.1,3.77337299]
[1769885428740,0.21169,2365.4,2363.1,3.77337299]
[1769885428942,3.84052036,2365.3,2362.7,3.77337299]
[1769885429347,3.84052036,2365.1,2362.7,3.77337299]
[1769885429549,4.05225036,2364.9,2362.7,3.77337299]
[1769885429750,4.05569942,2364.9,2362.7,3.77337299]
[1769885430650,0.00344906,2364.9,2362.7,3.77337299]
[1769885431851,0.21175,2364.7,2362.7,3.77337299]
[1769885432551,0.21175,2364.6,2362.7,3.77337299]
[1769885432850,0.21178,2364.4,2362.7,3.77337299]
[1769885433048,3.75789124,2363.9,2361.5,9.36937299]
[1769885433251,0.21184,2363.7,2361.5,9.36937299]
[1769885433452,0.21184,2363.7,2361.6,3.77337299]
[1769885433954,0.21184,2363.7,2361.8,3.77337299]
[1769885434248,0.21184,2363.7,2361.8,3.77690931]
[1769885434653,0.21184,2363.7,2361.8,3.78151611]
[1769885434848,0.21184,2363.7,2362.0,3.77337299]
[1769885435146,0.21184,2363.7,2362.3,0.0046068]
[1769885435350,0.00344906,2364.9,2362.8,3.77337299]
[1769885435852,0.00344906,2364.9,2362.9,3.77337299]
[1769885436047,0.2118,2364.1,2361.9,3.77337299]
[1769885436449,3.94482439,2364.9,2361.9,3.77337299]
[1769885436646,0.21174,2364.8,2361.9,3.77337299]
[1769885436849,3.73309439,2364.9,2361.9,3.77337299]
[1769885437045,0.21183,2363.8,2361.9,3.77337299]
[1769885437552,0.21186,2363.5,2361.9,3.77337299]
[1769885438253,0.21177,2364.4,2361.9,3.77337299]
[1769885439755,0.21517906,2364.9,2361.9,3.77337299]
[1769885440154,0.00344906,2364.9,2361.9,3.77337299]
[1769885440356,3.72555346,2366.4,2362.1,3.83821489]
[1769885440554,0.21164,2365.9,2362.1,3.83821489]
[1769885440754,0.21171,2365.1,2362.1,3.83821489]
[1769885441059,0.21174,2364.8,2362.1,3.83821489]
[1769885441352,0.00387263,2364.8,2362.1,3.83821489]
[1769885441557,4.06234615,2366.5,2362.1,3.83821489]
[1769885441853,10.076478,2367.0,2362.9,4.08581342]
[1769885442058,10.076478,2367.0,2362.8,3.385]
[1769885442059,0.21161,2366.2,2363.1,4.08581342]
[1769885442459,10.076478,2367.0,2363.1,4.08581342]
[1769885442460,6.22184922,2367.0,2363.1,4.08581342]
[1769885442752,6.22607204,2367.0,2363.1,4.08581342]
[1769885442953,3.85462878,2366.9,2363.1,4.08581342]
[1769885443755,0.21164,2365.9,2363.3,4.08581342]
[1769885443954,0.21165,2365.8,2363.4,3.385]
[1769885444258,0.21156,2366.8,2363.5,4.08581342]
[1769885444451,0.21156,2366.8,2363.5,4.08877835]
[1769885445561,0.21161,2366.3,2363.5,4.08877835]
[1769885445757,3.83716338,2365.9,2363.5,4.08877835]
[1769885445960,0.21169,2365.4,2363.5,4.08877835]
[1769885446351,3.83716338,2365.9,2363.5,4.08877835]
[1769885446553,4.04889338,2364.9,2363.5,0.00296493]
[1769885446753,3.84060564,2364.9,2363.4,2.41487493]
[1769885446953,0.2118,2364.1,2363.4,0.95885493]
[1769885447159,0.21174,2364.8,2363.4,4.59254835]
[1769885447359,3.83716338,2366.0,2363.4,4.59254835]
[1769885447559,0.21169,2365.4,2363.4,4.59254835]
[1769885447860,0.21172,2365.0,2363.4,4.59749377]
[1769885448060,3.98296805,2364.9,2363.4,0.00494542]
[1769885448260,0.21524226,2364.2,2362.0,3.384]
[1769885448456,0.2118,2364.2,2362.1,3.384]
[1769885448663,0.2118,2364.2,2362.2,3.384]
[1769885449058,0.00344226,2364.0,2362.2,3.384]
[1769885449267,0.21181,2364.1,2362.2,3.38746883]
[1769885449461,3.98296805,2365.0,2362.2,3.38746883]
[1769885449766,3.98641031,2364.6,2362.3,3.384]
[1769885449959,3.98296805,2364.6,2362.3,3.384]
[1769885450166,11.92202865,2364.9,2362.4,4.08581342]
[1769885450356,0.21176,2364.6,2362.4,4.08581342]
[1769885450555,0.21177,2364.5,2362.4,4.08581342]
[1769885450959,3.98296805,2363.7,2362.2,0.00346883]
[1769885451261,0.00344226,2363.0,2362.2,0.00346883]
[1769885451766,0.00344226,2362.5,2362.2,0.00346883]
[1769885451964,0.00344226,2362.5,2357.7,4.239]
[1769885451965,3.98296805,2362.4,2336.3,6.431]
[1769885452163,3.98296805,2361.2,2357.6,4.48954589]
[1769885452367,3.59696,2362.3,2357.6,4.48954589]
[1769885452368,3.98296805,2360.8,2357.6,4.48954589]
[1769885452564,3.98296805,2360.6,2357.6,4.48954589]
[1769885452867,3.98296805,2361.2,2357.6,4.48954589]
[1769885453063,0.00500983,2361.2,2357.7,4.08581342]
[1769885453269,0.00500983,2361.2,2357.9,4.08581342]
[1769885453462,4.19490805,2362.6,2358.1,4.08581342]
[1769885453658,0.212,2361.9,2358.1,4.08581342]
[1769885453862,3.98296805,2363.1,2358.1,4.08581342]
[1769885454166,0.21202,2361.6,2358.1,4.08581342]
[1769885454364,0.21666672,2361.6,2358.1,4.08581342]
[1769885454562,0.21203,2361.5,2358.1,4.08581342]
[1769885454764,0.00464672,2361.6,2358.1,4.08581342]
[1769885455968,3.98296805,2363.0,2358.7,4.08581342]
[1769885456268,0.21188,2363.3,2358.7,4.08581342]
[1769885456466,3.387,2364.6,2358.6,3.387]
[1769885456467,3.98296805,2364.3,2360.3,4.08581342]
[1769885456770,0.21179,2364.2,2360.3,4.08581342]
[1769885456965,0.21522963,2364.2,2360.3,4.09033936]
[1769885457966,4.19819768,2364.2,2360.3,4.09033936]
[1769885458271,0.21183,2363.7,2360.3,4.09033936]
[1769885458460,0.21189,2363.1,2360.3,4.09033936]
[1769885458664,0.21189,2363.1,2360.4,7.47281342]
[1769885458869,4.19476805,2364.1,2360.5,4.08581342]
[1769885459072,0.21182,2363.9,2360.5,4.08581342]
[1769885459265,0.00343963,2364.2,2360.5,4.08581342]
[1769885460464,3.98296805,2363.6,2360.5,4.08581342]
[1769885460662,0.00343963,2364.2,2360.5,4.08581342]
[1769885460663,3.98296805,2362.7,2360.5,4.08581342]
[1769885461069,0.00344226,2362.2,2360.5,4.08581342]
[1769885461265,3.98660901,2362.2,2360.4,3.387]
[1769885461465,0.00344226,2360.8,2359.5,3.387]
[1769885461670,3.98296805,2360.6,2358.8,3.387]
[1769885461870,3.98296805,2361.6,2358.9,4.08581342]
[1769885462167,3.98296805,2360.9,2358.3,7.47281342]
[1769885462474,3.98296805,2360.9,2358.5,4.08581342]
[1769885462765,3.98296805,2362.1,2358.5,4.08581342]
[1769885462974,4.19502805,2361.2,2358.5,4.08581342]